fUST/lending_fUST_20250421
["ID","MTS","AMOUNT","RATE_DAILY","PERIOD"]
[358520058,1745229049055,-1056.22,0.00021917,2]
[358520060,1745229049066,-1445.44,0.00021917,2]
[358520062,1745229049075,-203.78855009,0.00021917,2]
[358520064,1745229049085,-500.0,0.00021917,2]
[358520066,1745229049094,-500.0,0.00021917,2]
[358520068,1745229049104,-500.0,0.00021917,2]
[358520070,1745229049114,-545.59,0.00021917,2]
[358520072,1745229049124,-837.36,0.00021917,2]
[358520074,1745229049133,-500.0,0.00021917,2]
[358520076,1745229049143,-500.0,0.00021917,2]
[358520078,1745229049152,-500.0,0.00021917,2]
[358520080,1745229049162,-500.0,0.00021917,2]
[358520083,1745229049172,-987.22,0.00021917,2]
[358520084,1745229049182,-1671.49,0.00021917,2]
[358520087,1745229049192,-1206.58,0.00021917,2]
[358520089,1745229049202,-500.0,0.00021917,2]
[358520091,1745229049212,-500.0,0.00021917,2]
[358520093,1745229049222,-6140.27,0.00021917,2]
[358520095,1745229049231,-500.0,0.00021917,2]
[358520097,1745229049240,-500.0,0.00021917,2]
[358520099,1745229049250,-7197.86,0.00021917,2]
[358520101,1745229049260,-500.0,0.00021917,2]
[358520103,1745229049269,-500.0,0.00021917,2]
[358520104,1745229049279,-1235.18,0.00021917,2]
[358520106,1745229049289,-1070.22,0.00021917,2]
[358520108,1745229049299,-2946.16,0.00021917,2]
[358520110,1745229049310,-500.0,0.00021917,2]
[358520113,1745229049322,-500.0,0.00021917,2]
[358520115,1745229049333,-631.87,0.00021917,2]
[358520117,1745229049342,-500.0,0.00021917,2]
[358520119,1745229049352,-407.07271489,0.00021918,2]
[358520121,1745229049364,-587.0,0.00021935,2]
[358520123,1745229049373,-500.0,0.00021972,2]
[358520125,1745229049383,-500.0,0.00021973,2]
[358520127,1745229049393,-500.0,0.00021973,2]
[358520129,1745229049403,-517.15891689,0.00021973,2]
[358520131,1745229049412,-500.0,0.00021984,2]
[358520133,1745229049422,-326553.262221,0.00022,2]
[358520135,1745229049431,-348.43952355,0.00022,2]
[358520137,1745229049440,-1000.0,0.00022,2]
[358520139,1745229049450,-500.31,0.00022,4]
[358520141,1745229049459,-30615.23,0.00022,5]
[358520143,1745229049468,-5889.38135083,0.00022,3]
[358520145,1745229049477,-291.17701738,0.000221,2]
[358520147,1745229049487,-500.0,0.00022107,2]
[358520149,1745229049496,-500.0,0.00022126,2]
[358520151,1745229049505,-160.0,0.00022141,5]
[358520153,1745229049515,-500.0,0.00022191,2]
[358520155,1745229049526,-1494.8,0.00022191,2]
[358520157,1745229049536,-500.0,0.00022191,2]
[358520159,1745229049546,-500.0,0.00022191,2]
[358520161,1745229049555,-500.0,0.00022191,2]
[358520163,1745229049564,-500.0,0.00022191,2]
[358520165,1745229049574,-500.0,0.00022191,2]
[358520167,1745229049583,-500.0,0.00022191,2]
[358520169,1745229049593,-543.66,0.00022191,2]
[358520171,1745229049602,-500.0,0.00022191,2]
[358520173,1745229049611,-500.0,0.00022191,2]
[358520175,1745229049620,-500.0,0.00022191,2]
[358520177,1745229049629,-500.0,0.00022191,2]
[358520179,1745229049637,-500.0,0.00022191,2]
[358520181,1745229049646,-685.03,0.00022191,2]
[358520183,1745229049655,-2451.89,0.00022191,2]
[358520185,1745229049664,-1056.22,0.00022191,2]
[358520187,1745229049673,-1445.44,0.00022191,2]
[358520189,1745229049682,-500.0,0.00022191,2]
[358520191,1745229049692,-500.0,0.00022191,2]
[358520193,1745229049701,-500.0,0.00022191,2]
[358520195,1745229049711,-545.59,0.00022191,2]
[358520198,1745229049725,-837.36,0.00022191,2]
[358520200,1745229049734,-500.0,0.00022191,2]
[358520202,1745229049744,-500.0,0.00022191,2]
[358520204,1745229049754,-500.0,0.00022191,2]
[358520206,1745229049769,-539.31473422,0.00022191,2]
[358520208,1745229049779,-987.22,0.00022191,2]
[358520210,1745229049788,-1671.49,0.00022191,2]
[358520212,1745229049797,-1206.58,0.00022191,2]
[358520214,1745229049805,-500.0,0.00022191,2]
[358520216,1745229049813,-500.0,0.00022191,2]
[358520218,1745229049823,-6140.27,0.00022191,2]
[358520220,1745229049833,-500.0,0.00022191,2]
[358520223,1745229049843,-500.0,0.00022191,2]
[358520225,1745229049853,-7197.86,0.00022191,2]
[358520227,1745229049863,-500.0,0.00022191,2]
[358520229,1745229049874,-500.0,0.00022191,2]
[358520231,1745229049883,-1235.18,0.00022191,2]
[358520233,1745229049893,-1070.22,0.00022191,2]
[358520235,1745229049903,-2946.16,0.00022191,2]
[358520237,1745229049912,-500.0,0.00022191,2]
[358520239,1745229049922,-500.0,0.00022191,2]
[358520241,1745229049932,-631.87,0.00022191,2]
[358520243,1745229049941,-500.0,0.00022191,2]
[358520245,1745229049950,-500.0,0.00022219,2]
[358520247,1745229049959,-200.0,0.000223,2]
[358520249,1745229049968,-200.0,0.00022302,7]
[358520251,1745229049977,-259.25203759,0.00022302,7]
[358520253,1745229049989,-151.0,0.00022454,2]
[358520255,1745229049998,-160.0,0.00022457,6]
[358520257,1745229050008,-500.0,0.00022465,2]
[358520259,1745229050017,-1494.8,0.00022465,2]
[358520261,1745229050027,-500.0,0.00022465,2]
[358520263,1745229050036,-500.0,0.00022465,2]
[358520265,1745229050046,-500.0,0.00022465,2]
[358520267,1745229050055,-500.0,0.00022465,2]
[358520269,1745229050064,-500.0,0.00022465,2]
[358520271,1745229050074,-611.01834975,0.00022465,2]
[358520273,1745229050083,-543.66,0.00022465,2]
[358520275,1745229050092,-500.0,0.00022465,2]
[358520277,1745229050101,-500.0,0.00022465,2]
[358520279,1745229050111,-500.0,0.00022465,2]
[358520281,1745229050120,-500.0,0.00022465,2]
[358520283,1745229050129,-500.0,0.00022465,2]
[358520285,1745229050138,-685.03,0.00022465,2]
[358520287,1745229050148,-2451.89,0.00022465,2]
[358520289,1745229050157,-1056.22,0.00022465,2]
[358520291,1745229050167,-1445.44,0.00022465,2]
[358520293,1745229050177,-500.0,0.00022465,2]
[358520295,1745229050187,-500.0,0.00022465,2]
[358520297,1745229050197,-500.0,0.00022465,2]
[358520300,1745229050207,-545.59,0.00022465,2]
[358520302,1745229050217,-837.36,0.00022465,2]
[358520304,1745229050226,-500.0,0.00022465,2]
[358520306,1745229050236,-245.07520417,0.00022465,2]
[358520308,1745229050246,-500.0,0.00022465,2]
[358520310,1745229050255,-987.22,0.00022465,2]
[358520312,1745229050265,-1671.49,0.00022465,2]
[358520314,1745229050275,-1206.58,0.00022465,2]
[358520316,1745229050285,-500.0,0.00022465,2]
[358520318,1745229050294,-500.0,0.00022465,2]
[358520320,1745229050304,-6140.27,0.00022465,2]
[358520322,1745229050316,-500.0,0.00022465,2]
[358520324,1745229050326,-500.0,0.00022465,2]
[358520326,1745229050335,-7197.86,0.00022465,2]
[358520328,1745229050345,-500.0,0.00022465,2]
[358520330,1745229050355,-500.0,0.00022465,2]
[358520332,1745229050364,-1235.18,0.00022465,2]
[358520334,1745229050373,-1070.22,0.00022465,2]
[358520336,1745229050383,-2946.16,0.00022465,2]
[358520338,1745229050394,-500.0,0.00022465,2]
[358520340,1745229050404,-500.0,0.00022465,2]
[358520342,1745229050413,-631.87,0.00022465,2]
[358520344,1745229050423,-500.0,0.00022465,2]
[358520347,1745229050433,-500.0,0.00022468,2]
[358520349,1745229050443,-500.0,0.00022509,2]
[358520351,1745229050453,-500.0,0.00022515,2]
[358520353,1745229050462,-500.0,0.00022523,2]
[358520355,1745229050473,-9204.46531791,0.0002259,4]
[358520357,1745229050482,-500.0,0.00022739,2]
[358520359,1745229050492,-188.0,0.00022739,2]
[358520361,1745229050502,-188.63167603,0.00022739,2]
[358520363,1745229050511,-1494.8,0.00022739,2]
[358520365,1745229050520,-500.0,0.00022739,2]
[358520367,1745229050529,-500.0,0.00022739,2]
[358520369,1745229050539,-500.0,0.00022739,2]
[358520371,1745229050550,-500.0,0.00022739,2]
[358520373,1745229050559,-500.0,0.00022739,2]
[358520375,1745229050568,-543.66,0.00022739,2]
[358520377,1745229050578,-500.0,0.00022739,2]
[358520379,1745229050587,-500.0,0.00022739,2]
[358520381,1745229050596,-500.0,0.00022739,2]
[358520383,1745229050605,-500.0,0.00022739,2]
[358520385,1745229050615,-500.0,0.00022739,2]
[358520387,1745229050624,-685.03,0.00022739,2]
[358520389,1745229050634,-2451.89,0.00022739,2]
[358520391,1745229050643,-1056.22,0.00022739,2]
[358520393,1745229050652,-1445.44,0.00022739,2]
[358520395,1745229050661,-500.0,0.00022739,2]
[358520397,1745229050671,-500.0,0.00022739,2]
[358520398,1745229050680,-500.0,0.00022739,2]
[358520399,1745229050689,-545.59,0.00022739,2]
[358520400,1745229050698,-837.36,0.00022739,2]
[358520401,1745229050708,-500.0,0.00022739,2]
[358520402,1745229050718,-500.0,0.00022739,2]
[358520403,1745229050727,-987.22,0.00022739,2]
[358520404,1745229050735,-1671.49,0.00022739,2]
[358520405,1745229050745,-1206.58,0.00022739,2]
[358520406,1745229050754,-500.0,0.00022739,2]
[358520407,1745229050763,-500.0,0.00022739,2]
[358520408,1745229050773,-6140.27,0.00022739,2]
[358520409,1745229050782,-333.78995562,0.00022739,2]
[358520411,1745229050791,-500.0,0.00022739,2]
[358520413,1745229050801,-7197.86,0.00022739,2]
[358520415,1745229050811,-500.0,0.00022739,2]
[358520417,1745229050820,-500.0,0.00022739,2]
[358520419,1745229050830,-1235.18,0.00022739,2]
[358520421,1745229050839,-1070.22,0.00022739,2]
[358520423,1745229050849,-2946.16,0.00022739,2]
[358520425,1745229050859,-465.01211294,0.00022739,2]
[358520427,1745229050868,-500.0,0.00022739,2]
[358520429,1745229050877,-631.87,0.00022739,2]
[358520431,1745229050887,-500.0,0.00022739,2]
[358520433,1745229050896,-900.0,0.0002276,2]
[358520435,1745229050907,-500.0,0.00022768,2]
[358520437,1745229050916,-160.0,0.00022774,7]
[358520439,1745229050925,-164.72617705,0.00022774,5]
[358520441,1745229050934,-500.0,0.00022811,2]
[358520443,1745229050944,-231.01321067,0.000229,2]
[358520445,1745229050954,-500.0,0.00022947,2]
[358520447,1745229050963,-1500.000001,0.00023,2]
[358520449,1745229050972,-246.76063255,0.00023,2]
[358520451,1745229050982,-160.0,0.00023,3]
[358520453,1745229050991,-160.0,0.00023,3]
[358520456,1745229051002,-200.0,0.00023,2]
[358520458,1745229051012,-420.65680271,0.00023,3]
[358520460,1745229051022,-151.0,0.00023002,2]
[358520462,1745229051032,-500.0,0.00023013,2]
[358520464,1745229051041,-1494.8,0.00023013,2]
[358520466,1745229051051,-500.0,0.00023013,2]
[358520468,1745229051060,-500.0,0.00023013,2]
[358520470,1745229051070,-500.0,0.00023013,2]
[358520472,1745229051079,-500.0,0.00023013,2]
[358520474,1745229051088,-500.0,0.00023013,2]
[358520476,1745229051097,-543.66,0.00023013,2]
[358520478,1745229051107,-500.0,0.00023013,2]
[358520480,1745229051116,-500.0,0.00023013,2]
[358520486,1745229051156,-500.0,0.00023013,2]
[358520488,1745229051166,-500.0,0.00023013,2]
[358520490,1745229051175,-500.0,0.00023013,2]
[358520492,1745229051185,-685.03,0.00023013,2]
[358520494,1745229051194,-2451.89,0.00023013,2]
[358520496,1745229051203,-1056.22,0.00023013,2]
[358520498,1745229051213,-1445.44,0.00023013,2]
[358520500,1745229051223,-500.0,0.00023013,2]
[358520502,1745229051232,-500.0,0.00023013,2]
[358520504,1745229051241,-500.0,0.00023013,2]
[358520506,1745229051251,-545.59,0.00023013,2]
[358520508,1745229051261,-837.36,0.00023013,2]
[358520510,1745229051271,-500.0,0.00023013,2]
[358520512,1745229051280,-388.87081666,0.00023013,2]
[358520514,1745229051289,-987.22,0.00023013,2]
[358520516,1745229051299,-1671.49,0.00023013,2]
[358520518,1745229051308,-1206.58,0.00023013,2]
[358520521,1745229051322,-500.0,0.00023013,2]
[358520523,1745229051331,-500.0,0.00023013,2]
[358520525,1745229051340,-6140.27,0.00023013,2]
[358520527,1745229051350,-164.86626395,0.00023013,2]
[358520529,1745229051361,-7197.86,0.00023013,2]
[358520531,1745229051370,-500.0,0.00023013,2]
[358520533,1745229051380,-500.0,0.00023013,2]
[358520534,1745229051390,-1235.18,0.00023013,2]
[358520537,1745229051400,-1070.22,0.00023013,2]
[358520539,1745229051411,-2946.16,0.00023013,2]
[358520541,1745229051421,-571.05963961,0.00023013,2]
[358520543,1745229051431,-631.87,0.00023013,2]
[358520545,1745229051440,-500.0,0.00023013,2]
[358520547,1745229051449,-500.0,0.00023049,2]
[358520549,1745229051459,-350.0,0.000231,2]
[358520551,1745229051468,-151.0,0.000231,5]
[358520553,1745229051478,-1522.61,0.000232,2]
[358520555,1745229051487,-1000.0,0.00023205,2]
[358520557,1745229051496,-1000.0,0.00023205,2]
[358520559,1745229051506,-1000.0,0.00023205,2]
[358520561,1745229051516,-1000.0,0.00023205,2]
[358520563,1745229051526,-1000.0,0.00023205,2]
[358520565,1745229051535,-386.50100845,0.00023205,2]
[358520567,1745229051544,-330.74712041,0.00023287,2]
[358520569,1745229051553,-1494.8,0.00023287,2]
[358520571,1745229051563,-500.0,0.00023287,2]
[358520573,1745229051572,-500.0,0.00023287,2]
[358520575,1745229051583,-160.0,0.00023287,2]
[358520577,1745229051594,-603.57036265,0.00023287,2]
[358520579,1745229051604,-500.0,0.00023287,2]
[358520581,1745229051614,-500.0,0.00023287,2]
[358520583,1745229051623,-543.66,0.00023287,2]
[358520585,1745229051632,-500.0,0.00023287,2]
[358520587,1745229051641,-500.0,0.00023287,2]
[358520589,1745229051651,-500.0,0.00023287,2]
[358520591,1745229051660,-500.0,0.00023287,2]
[358520593,1745229051669,-500.0,0.00023287,2]
[358520596,1745229051679,-685.03,0.00023287,2]
[358520597,1745229051689,-2451.89,0.00023287,2]
[358520599,1745229051698,-1056.22,0.00023287,2]
[358520601,1745229051707,-1445.44,0.00023287,2]
[358520603,1745229051717,-500.0,0.00023287,2]
[358520605,1745229051726,-500.0,0.00023287,2]
[358520607,1745229051736,-500.0,0.00023287,2]
[358520609,1745229051746,-545.59,0.00023287,2]
[358520611,1745229051756,-837.36,0.00023287,2]
[358520614,1745229051766,-500.0,0.00023287,2]
[358520616,1745229051776,-987.22,0.00023287,2]
[358520618,1745229051785,-1671.49,0.00023287,2]
[358520620,1745229051795,-1206.58,0.00023287,2]
[358520622,1745229051804,-500.0,0.00023287,2]
[358520624,1745229051814,-500.0,0.00023287,2]
[358520626,1745229051824,-6140.27,0.00023287,2]
[358520628,1745229051833,-7197.86,0.00023287,2]
[358520630,1745229051843,-234.23358787,0.00023287,2]
[358520632,1745229051852,-273.33984595,0.00023287,2]
[358520634,1745229051862,-1235.18,0.00023287,2]
[358520636,1745229051871,-1070.22,0.00023287,2]
[358520638,1745229051880,-2946.16,0.00023287,2]
[358520640,1745229051890,-631.87,0.00023287,2]
[358520642,1745229051900,-500.0,0.00023287,2]
[358520644,1745229051909,-200.0,0.000233,2]
[358520646,1745229051918,-9204.46531791,0.00023486,4]
[358520648,1745229051927,-200.0,0.00023493,7]
[358520650,1745229051937,-200.0,0.00023493,7]
[358520652,1745229051946,-151.0,0.000235,7]
[358520654,1745229051955,-500.0,0.00023518,2]
[358520656,1745229051964,-151.0,0.0002355,2]
[358520658,1745229051973,-1494.8,0.00023561,2]
[358520660,1745229051983,-500.0,0.00023561,2]
[358520662,1745229051992,-500.0,0.00023561,2]
[358520664,1745229052001,-500.0,0.00023561,2]
[358520666,1745229052010,-500.0,0.00023561,2]
[358520668,1745229052019,-543.66,0.00023561,2]
[358520670,1745229052028,-500.0,0.00023561,2]
[358520672,1745229052037,-524.19518915,0.00023561,2]
[358520674,1745229052046,-500.0,0.00023561,2]
[358520676,1745229052055,-417.9388705,0.00023561,2]
[358520678,1745229052065,-217.75400795,0.00023561,2]
[358520680,1745229052074,-685.03,0.00023561,2]
[358520682,1745229052083,-2451.89,0.00023561,2]
[358520684,1745229052092,-1056.22,0.00023561,2]
[358520686,1745229052101,-1445.44,0.00023561,2]
[358520688,1745229052111,-289.76213966,0.00023561,2]
[358520690,1745229052120,-500.0,0.00023561,2]
[358520692,1745229052129,-500.0,0.00023561,2]
[358520694,1745229052139,-545.59,0.00023561,2]
[358520696,1745229052149,-837.36,0.00023561,2]
[358520698,1745229052158,-377.39258523,0.00023561,2]
[358520700,1745229052168,-987.22,0.00023561,2]
[358520702,1745229052177,-1671.49,0.00023561,2]
[358520704,1745229052186,-1206.58,0.00023561,2]
[358520706,1745229052195,-500.0,0.00023561,2]
[358520708,1745229052204,-500.0,0.00023561,2]
[358520710,1745229052214,-6140.27,0.00023561,2]
[358520712,1745229052224,-7197.86,0.00023561,2]
[358520714,1745229052233,-1235.18,0.00023561,2]
[358520716,1745229052243,-1070.22,0.00023561,2]
[358520718,1745229052252,-2946.16,0.00023561,2]
[358520720,1745229052261,-631.87,0.00023561,2]
[358520722,1745229052271,-500.0,0.00023561,2]
[358520724,1745229052280,-500.0,0.00023612,2]
[358520726,1745229052289,-183.54667076,0.00023673,2]
[358520728,1745229052299,-823.0,0.00023694,2]
[358520730,1745229052309,-500.0,0.00023745,2]
[358520732,1745229052322,-500.0,0.00023775,2]
[358520734,1745229052331,-500.0,0.00023813,2]
[358520736,1745229052341,-500.0,0.00023818,2]
[358520738,1745229052350,-1494.8,0.00023835,2]
[358520740,1745229052361,-500.0,0.00023835,2]
[358520742,1745229052370,-500.0,0.00023835,2]
[358520744,1745229052379,-500.0,0.00023835,2]
[358520746,1745229052388,-500.0,0.00023835,2]
[358520748,1745229052398,-543.66,0.00023835,2]
[358520750,1745229052407,-500.0,0.00023835,2]
[358520752,1745229052416,-473.34572232,0.00023835,2]
[358520754,1745229052425,-685.03,0.00023835,2]
[358520756,1745229052434,-2451.89,0.00023835,2]
[358520758,1745229052444,-1056.22,0.00023835,2]
[358520760,1745229052453,-1445.44,0.00023835,2]
[358520762,1745229052462,-500.0,0.00023835,2]
[358520764,1745229052472,-500.0,0.00023835,2]
[358520766,1745229052482,-545.59,0.00023835,2]
[358520768,1745229052491,-837.36,0.00023835,2]
[358520770,1745229052501,-987.22,0.00023835,2]
[358520772,1745229052510,-1671.49,0.00023835,2]
[358520774,1745229052519,-1206.58,0.00023835,2]
[358520776,1745229052531,-500.0,0.00023835,2]
[358520778,1745229052540,-370.99748754,0.00023835,2]
[358520780,1745229052550,-6140.27,0.00023835,2]
[358520782,1745229052559,-7197.86,0.00023835,2]
[358520784,1745229052570,-1235.18,0.00023835,2]
[358520786,1745229052580,-1070.22,0.00023835,2]
[358520788,1745229052589,-2946.16,0.00023835,2]
[358520790,1745229052599,-631.87,0.00023835,2]
[358520792,1745229052608,-500.0,0.00023835,2]
[358520794,1745229052617,-500.0,0.00023837,2]
[358520796,1745229052627,-2000.0,0.00023866,4]
[358520799,1745229052638,-726.8334137,0.00023868,2]
[358520801,1745229052646,-331.6220371,0.00024,4]
[358520803,1745229052655,-300.0,0.00024,2]
[358520805,1745229052665,-823.0,0.00024044,2]
[358520807,1745229052674,-500.0,0.0002406,2]
[358520809,1745229052684,-151.0,0.00024098,2]
[358520811,1745229052693,-1494.8,0.00024109,2]
[358520813,1745229052702,-500.0,0.00024109,2]
[358520815,1745229052712,-500.0,0.00024109,2]
[358520817,1745229052721,-500.0,0.00024109,2]
[358520819,1745229052731,-480.14535579,0.00024109,2]
[358520821,1745229052741,-543.66,0.00024109,2]
[358520823,1745229052751,-587.65217317,0.00024109,2]
[358520825,1745229052760,-500.0,0.00024109,2]
[358520827,1745229052769,-500.0,0.00024109,2]
[358520829,1745229052778,-500.0,0.00024109,2]
[358520831,1745229052787,-250.01037945,0.00024109,2]
[358520833,1745229052797,-685.03,0.00024109,2]
[358520835,1745229052806,-2451.89,0.00024109,2]
[358520838,1745229052816,-1056.22,0.00024109,2]
[358520840,1745229052826,-1445.44,0.00024109,2]
[358520842,1745229052835,-500.0,0.00024109,2]
[358520844,1745229052846,-524.93038541,0.00024109,2]
[358520846,1745229052856,-545.59,0.00024109,2]
[358520848,1745229052866,-837.36,0.00024109,2]
[358520850,1745229052876,-987.22,0.00024109,2]
[358520852,1745229052886,-1671.49,0.00024109,2]
[358520854,1745229052896,-1206.58,0.00024109,2]
[358520856,1745229052906,-500.0,0.00024109,2]
[358520858,1745229052916,-6140.27,0.00024109,2]
[358520860,1745229052925,-7197.86,0.00024109,2]
[358520862,1745229052935,-1235.18,0.00024109,2]
[358520864,1745229052945,-1070.22,0.00024109,2]
[358520866,1745229052955,-2946.16,0.00024109,2]
[358520868,1745229052966,-631.87,0.00024109,2]
[358520870,1745229052977,-500.0,0.00024109,2]
[358520872,1745229052987,-500.0,0.00024177,2]
[358520875,1745229052997,-709.491555,0.00024189,2]
[358520877,1745229053007,-500.0,0.00024237,2]
[358520879,1745229053016,-200.0,0.000243,2]
[358520881,1745229053026,-500.0,0.00024305,2]
[358520883,1745229053036,-500.0,0.00024305,2]
[358520885,1745229053046,-9204.46531791,0.00024383,5]
[358520887,1745229053056,-1494.8,0.00024383,2]
[358520889,1745229053065,-151.0,0.00024383,7]
[358520891,1745229053075,-239.73787902,0.00024383,2]
[358520893,1745229053085,-151.0,0.00024383,7]
[358520895,1745229053095,-151.0,0.00024383,7]
[358520897,1745229053105,-553.170905,0.00024383,2]
[358520899,1745229053114,-151.0,0.00024383,7]
[358520901,1745229053124,-151.0,0.00024383,7]
[358520903,1745229053133,-151.0,0.00024383,7]
[358520905,1745229053143,-500.0,0.00024383,2]
[358520907,1745229053153,-151.0,0.00024383,7]
[358520909,1745229053163,-543.66,0.00024383,2]
[358520911,1745229053172,-280.497225,0.00024383,7]
[358520913,1745229053182,-280.497225,0.00024383,7]
[358520916,1745229053191,-151.0,0.00024383,7]
[358520917,1745229053201,-151.0,0.00024383,7]
[358520919,1745229053211,-151.0,0.00024383,7]
[358520922,1745229053221,-151.0,0.00024383,7]
[358520924,1745229053230,-151.0,0.00024383,7]
[358520926,1745229053241,-152.07734,0.00024383,7]
[358520928,1745229053250,-151.0,0.00024383,7]
[358520930,1745229053260,-218.685545,0.00024383,7]
[358520932,1745229053270,-218.685545,0.00024383,7]
[358520934,1745229053279,-151.0,0.00024383,7]
[358520936,1745229053289,-180.883678,0.00024383,7]
[358520938,1745229053299,-151.0,0.00024383,7]
[358520940,1745229053308,-151.0,0.00024383,7]
[358520942,1745229053323,-574.212346,0.00024383,2]
[358520944,1745229053333,-574.212346,0.00024383,2]
[358520946,1745229053343,-151.0,0.00024383,7]
[358520948,1745229053353,-151.0,0.00024383,7]
[358520950,1745229053363,-685.03,0.00024383,2]
[358520951,1745229053373,-2451.89,0.00024383,2]
[358520952,1745229053383,-1056.22,0.00024383,2]
[358520953,1745229053394,-1445.44,0.00024383,2]
[358520954,1745229053405,-226.920183,0.00024383,7]
[358520955,1745229053415,-226.920183,0.00024383,7]
[358520956,1745229053424,-151.0,0.00024383,7]
[358520957,1745229053434,-299.10980055,0.00024383,2]
[358520958,1745229053444,-151.0,0.00024383,7]
[358520959,1745229053454,-151.0,0.00024383,7]
[358520960,1745229053463,-545.59,0.00024383,2]
[358520962,1745229053473,-837.36,0.00024383,2]
[358520964,1745229053484,-151.0,0.00024383,7]
[358520966,1745229053493,-151.0,0.00024383,7]
[358520969,1745229053505,-500.0,0.00024383,2]
[358520971,1745229053515,-500.0,0.00024383,2]
[358520973,1745229053524,-617.313101,0.00024383,2]
[358520975,1745229053534,-151.0,0.00024383,7]
[358520977,1745229053544,-151.0,0.00024383,7]
[358520979,1745229053554,-234.570834,0.00024383,7]
[358520981,1745229053564,-234.570834,0.00024383,7]
[358520983,1745229053574,-987.22,0.00024383,2]
[358520985,1745229053584,-1671.49,0.00024383,2]
[358520987,1745229053593,-151.0,0.00024383,7]
[358520989,1745229053603,-151.0,0.00024383,7]
[358520991,1745229053613,-1206.58,0.00024383,2]
[358520993,1745229053622,-500.0,0.00024383,2]
[358520995,1745229053631,-6140.27,0.00024383,2]
[358520997,1745229053642,-7197.86,0.00024383,2]
[358520999,1745229053652,-1235.18,0.00024383,2]
[358521001,1745229053662,-1070.22,0.00024383,2]
[358521003,1745229053672,-2946.16,0.00024383,2]
[358521005,1745229053681,-548.065619,0.00024383,7]
[358521007,1745229053692,-151.0,0.00024383,7]
[358521009,1745229053702,-548.065619,0.00024383,7]
[358521011,1745229053712,-151.0,0.00024383,7]
[358521013,1745229053723,-631.87,0.00024383,2]
[358521016,1745229053733,-500.0,0.00024383,2]
[358521017,1745229053743,-151.0,0.00024383,7]
[358521020,1745229053753,-1011.581443,0.00024383,7]
[358521022,1745229053763,-165.68750889,0.000244,2]
[358521024,1745229053773,-1200.0,0.00024404,2]
[358521025,1745229053782,-500.0,0.00024417,2]
[358521027,1745229053792,-563.43736002,0.00024439,2]
[358521029,1745229053802,-200.0,0.000245,2]
[358521032,1745229053812,-800.0,0.00024629,2]
[358521033,1745229053821,-170.0,0.0002463,2]
[358521035,1745229053831,-170.0,0.0002463,2]
[358521037,1745229053840,-170.0,0.0002463,2]
[358521039,1745229053850,-170.0,0.0002463,2]
[358521042,1745229053860,-170.0,0.0002463,2]
[358521044,1745229053870,-170.0,0.0002463,2]
[358521046,1745229053879,-170.0,0.0002463,2]
[358521048,1745229053889,-170.0,0.0002463,2]
[358521050,1745229053898,-170.0,0.0002463,2]
[358521052,1745229053908,-170.0,0.0002463,2]